bitfinex-derivatives/quotes_ETHF0:USTF0_20250321
["timestamp","ask_amount","ask_price","bid_price","bid_amount"]
[1742567782078,1.02324,1955.5,1955.4,4.9956]
[1742567782278,1.02324,1955.5,1955.4,6.01889]
[1742567782479,1.02324,1955.5,1955.4,4.9956]
[1742567782683,1.02324,1955.5,1955.4,6.01889]
[1742567783078,1.02324,1955.5,1955.4,4.9956]
[1742567784786,1.3754,1955.7,1955.4,4.9956]
[1742567784983,1.02324,1955.5,1955.4,9.22665]
[1742567785284,1.02324,1955.5,1955.4,4.9956]
[1742567785482,1.02324,1955.5,1955.4,4.9946]
[1742567787484,4.5832,1955.7,1955.6,1.02319]
[1742567787682,1.02322,1955.6,1955.4,4.9946]
[1742567787991,1.02322,1955.6,1955.5,1.02324]
[1742567788287,1.02322,1955.6,1955.5,2.32744]
[1742567788476,1.3754,1955.7,1955.5,1.3042]
[1742567788683,1.02319,1955.6,1955.5,1.3042]
[1742567788880,1.02324,1955.5,1955.4,3.601]
[1742567789081,1.02329,1955.4,1955.3,1.4095]
[1742567789283,1.70439,1955.4,1955.3,1.4095]
[1742567789485,3.10399,1955.4,1955.3,1.4095]
[1742567790284,2.0807,1955.4,1955.3,2.43285]
[1742567790483,3.10399,1955.4,1955.3,2.43285]
[1742567790685,1.70439,1955.4,1955.3,2.43285]
[1742567791273,1.70439,1955.4,1955.3,1.4095]
[1742567791480,3.06799,1955.4,1955.3,1.4095]
[1742567792185,3.06799,1955.4,1955.3,2.43285]
[1742567792186,1.02329,1955.4,1955.3,2.43285]
[1742567792387,1.02329,1955.4,1955.3,1.4095]
[1742567792787,1.67068,1955.5,1955.4,1.02329]
[1742567792987,1.67064,1955.5,1955.4,3.6]
[1742567793591,3.12313783,1955.5,1955.4,3.6]
[1742567793791,1.02335,1955.3,1955.2,1.43377794]
[1742567794290,1.02335,1955.3,1955.2,0.00767794]
[1742567794485,5.79670541,1955.3,1954.6,44.0078]
[1742567794691,1.02361,1954.8,1954.7,4.9846]
[1742567795492,2.42401,1954.8,1954.7,4.9846]
[1742567796192,2.42401,1954.8,1954.7,3.599]
[1742567796380,3.13231,1954.8,1954.7,3.599]
[1742567796785,3.13231,1954.8,1954.7,4.9846]
[1742567796983,1.02366,1954.7,1954.6,0.00767794]
[1742567797184,2.42406,1954.7,1954.6,0.00767794]
[1742567800187,2.42406,1954.7,1954.6,1.03138794]
[1742567800492,1.02366,1954.7,1954.6,1.03135794]
[1742567800682,1.02366,1954.7,1954.6,0.00767794]
[1742567801185,2.34436,1954.7,1954.6,0.00767794]
[1742567802492,2.75382341,1954.7,1954.6,0.00767794]
[1742567802686,5.55216,1954.7,1954.6,0.00767794]
[1742567802880,9.67668448,1954.7,1954.2,1.3149]
[1742567803083,1.02403,1954.0,1953.9,50.5128]
[1742567803287,1.02403,1954.0,1953.9,52.2189]
[1742567803487,1.02403,1954.0,1953.9,89.4199]
[1742567803993,3.2078,1954.4,1953.9,92.6277]
[1742567804182,1.02402,1954.1,1954.0,1.02401]
[1742567804381,1.02402,1954.1,1954.0,2.32571]
[1742567804786,1.3198,1954.2,1954.0,1.3017]
[1742567805093,2.34372,1954.2,1954.1,3.599]
[1742567805894,1.02392,1954.2,1954.1,3.599]
[1742567806091,1.02392,1954.2,1954.1,4.62298]
[1742567806287,1.02392,1954.2,1954.1,7.83075]
[1742567806493,1.02392,1954.2,1954.1,4.62295]
[1742567806893,1.02392,1954.2,1954.1,3.599]
[1742567807994,1.02403,1954.0,1953.9,47.305]
[1742567808683,1.02403,1954.0,1953.9,88.105]
[1742567809280,1.02403,1954.0,1953.9,89.4843]
[1742567809793,1.02403,1954.0,1953.9,90.50838]
[1742567809994,1.02403,1954.0,1953.9,89.4843]
[1742567810195,1.02403,1954.0,1953.9,90.50838]
[1742567810391,2.55971,1954.3,1953.9,92.6921]
[1742567810593,1.02401,1954.1,1954.0,1.02398]
[1742567810898,1.02401,1954.1,1954.0,2.34013]
[1742567811287,1.02397,1954.2,1954.1,1.02394]
[1742567811488,1.02397,1954.2,1954.1,4.62294]
[1742567812495,1.3036,1954.3,1954.2,1.02388]
[1742567812496,1.02391,1954.3,1954.2,1.02388]
[1742567812793,1.02391,1954.3,1954.2,1.3084]
[1742567813194,1.02391,1954.3,1954.2,2.33232]
[1742567814802,2.31917,1954.4,1954.3,1.02387]
[1742567814996,1.02376,1954.6,1954.5,1.02375]
[1742567815691,1.02376,1954.6,1954.5,1.3655]
[1742567815992,2.35246,1954.6,1954.5,1.3655]
[1742567816191,2.5597,1954.3,1953.9,91.704]
[1742567816397,1.02398,1954.1,1954.0,1.3655]
[1742567816599,1.02403,1954.0,1953.9,47.305]
[1742567816900,1.02403,1954.0,1953.9,48.6705]
[1742567817092,1.3287,1954.1,1953.8,0.00767794]
[1742567817093,1.02408,1953.9,1953.8,0.00767794]
[1742567817288,2.35278,1953.9,1953.8,0.00767794]
[1742567817494,1.02424,1953.6,1953.5,3.599]
[1742567817699,1.02424,1953.6,1953.5,1.3655]
[1742567818299,1.3287,1953.6,1953.1,4.23226]
[1742567818595,1.02439,1953.3,1953.2,4.9645]
[1742567818797,2.5613,1953.1,1952.8,3.2078]
[1742567818997,1.02466,1952.8,1952.7,1.3476]
[1742567819395,5.76933,1952.9,1952.5,45.4238]
[1742567819595,1.02476,1952.6,1952.5,45.7466]
[1742567820197,1.3145,1952.7,1952.5,45.7466]
[1742567820397,1.02472,1952.7,1952.6,1.02473]
[1742567820598,1.02471,1952.7,1952.6,1.02473]
[1742567820906,1.02465,1952.9,1952.6,3.2078]
[1742567821093,1.02463,1952.9,1952.7,2.37228]
[1742567821400,11.1853,1953.2,1952.8,1.02465]
[1742567821593,1.02456,1953.0,1952.6,3.2078]
[1742567821798,1.02456,1953.0,1952.9,1.0246]
[1742567821996,1.0246,1952.9,1952.8,3.6]
[1742567822199,2.33902,1953.1,1952.8,6.8078]
[1742567822407,1.02457,1953.0,1952.9,1.0246]
[1742567822705,1.0246,1952.9,1952.8,3.6]
[1742567822907,1.02476,1952.6,1952.5,41.82479]
[1742567823094,1.02476,1952.6,1952.5,45.42479]
[1742567823296,1.02476,1952.6,1952.5,40.8]
[1742567823601,1.02481,1952.5,1952.4,51.95654794]
[1742567823996,1.02481,1952.5,1952.4,91.73167794]
[1742567825000,1.02481,1952.5,1952.4,0.00767794]
[1742567825513,4.23261,1952.5,1952.4,0.00767794]
[1742567825700,5.85868576,1952.5,1952.0,6.8078]
[1742567825901,5.85868576,1952.5,1952.0,3.2078]
[1742567825902,1.02502,1952.1,1952.0,3.2078]
[1742567826207,4.9679,1952.4,1952.1,1.02499]
[1742567826501,1.3679,1952.4,1952.2,3.2078]
[1742567826703,1.3587,1952.7,1952.2,6.8078]
[1742567826900,0.00767794,1952.5,1952.3,1.0249]
[1742567827108,1.03251794,1952.5,1952.3,1.02489]
[1742567827303,1.02487,1952.4,1952.2,7.83273]
[1742567827504,1.02492,1952.3,1952.2,6.8078]
[1742567827700,1.02492,1952.3,1952.2,7.83273]
[1742567827905,0.00767794,1952.5,1952.2,7.83273]
[1742567828105,1.02487,1952.4,1952.3,1.02492]
[1742567828400,1.03252794,1952.5,1952.3,1.02488]
[1742567828803,0.00767794,1952.5,1952.4,1.02487]
[1742567829000,0.00767794,1952.5,1952.3,1.6858]
[1742567829203,1.03251794,1952.5,1952.3,1.6858]
[1742567829412,1.02487,1952.4,1952.3,3.601]
[1742567829609,1.02497,1952.2,1952.1,3.60867794]
[1742567829809,1.02497,1952.2,1952.1,0.00767794]
[1742567830607,1.02497,1952.3,1952.1,0.00767794]
[1742567830808,1.02497,1952.2,1952.1,0.00767794]
[1742567831105,1.02497,1952.2,1952.1,1.03266794]
[1742567831306,1.3849,1952.3,1952.2,1.02497]
[1742567831506,0.00767794,1952.5,1952.2,3.2078]
[1742567831708,1.02493,1952.3,1952.2,1.02494]
[1742567832008,0.00767794,1952.5,1952.4,1.02487]
[1742567832210,0.00767794,1952.5,1952.4,4.62587]
[1742567833608,1.03248794,1952.5,1952.4,3.601]
[1742567833808,2.41738794,1952.5,1952.4,3.601]
[1742567834808,1.02487,1952.4,1952.3,1.0249]
[1742567835006,1.02492,1952.3,1952.2,3.601]
[1742567835410,1.02497,1952.2,1952.1,3.60867794]
[1742567835611,2.34987,1952.2,1952.1,1.43647794]
[1742567836103,2.34987,1952.2,1952.1,0.00767794]
[1742567836307,3.05647,1952.2,1952.1,0.00767794]
[1742567836507,1.02513,1951.9,1951.8,1.4288]
[1742567836709,2.56278,1952.0,1951.5,1.02533]
[1742567836915,1.02529,1951.6,1951.5,5.0256]
[1742567837115,1.02529,1951.6,1951.5,1.4246]
[1742567837415,1.02529,1951.6,1951.3,3.601]
[1742567837416,1.02539,1951.4,1951.3,3.601]
[1742567837603,1.02539,1951.4,1951.3,6.05104]
[1742567837807,1.02539,1951.4,1951.3,5.0307186]
[1742567838506,1.02539,1951.4,1951.3,0.0051186]
[1742567838907,2.40289,1951.4,1951.3,0.0051186]
[1742567843210,2.49162226,1951.4,1951.3,0.0051186]
[1742567843715,2.40289,1951.4,1951.3,0.0051186]
[1742567846717,2.40289,1951.4,1951.3,1.2987186]
[1742567849233,2.40289,1951.4,1951.3,2.3241586]
[1742567849422,2.40289,1951.4,1951.3,1.2987186]
[1742567850828,13.449,1951.6,1951.3,2.3241586]
[1742567851025,1.02537,1951.5,1951.4,1.02539]
[1742567851226,1.02537,1951.5,1951.3,1.0305286]
[1742567851435,2.37579,1951.5,1951.3,1.0305286]
[1742567851628,1.02539,1951.4,1951.3,1.0305286]
[1742567852130,1.02539,1951.4,1951.3,0.0051186]
[1742567852934,2.39929,1951.4,1951.3,0.0051186]
[1742567854231,1.02539,1951.4,1951.3,1.0305386]
[1742567854830,1.02539,1951.4,1951.3,0.0051186]
[1742567856430,2.34689,1951.4,1951.3,0.0051186]
[1742567856827,2.43567905,1951.4,1951.3,0.0051186]
[1742567857031,1.02566,1950.9,1950.8,47.362]
[1742567857323,5.77157,1951.2,1950.8,50.964]
[1742567857530,1.02565,1951.0,1950.9,1.02564]
[1742567857730,1.3215,1951.1,1950.8,50.964]
[1742567857924,1.0256,1951.0,1950.9,1.02565]
[1742567858129,1.02566,1950.9,1950.8,51.98967]
[1742567858732,1.02566,1950.9,1950.8,50.964]
[1742567858934,1.02571,1950.8,1950.7,40.8]
[1742567859234,1.02571,1950.8,1950.7,4.62676]
[1742567859831,1.0257,1950.9,1950.8,1.02571]
[1742567860034,1.02561,1951.0,1950.9,1.02566]
[1742567860234,0.00767794,1951.1,1951.0,1.0256]
[1742567860435,0.00767794,1951.1,1951.0,4.6266]
[1742567860733,1.03322794,1951.1,1951.0,4.6266]
[1742567861037,0.00767794,1951.1,1951.0,4.6266]
[1742567861229,1.03322794,1951.1,1951.0,4.6266]
[1742567861430,0.00767794,1951.1,1951.0,4.6266]
[1742567863731,0.00767794,1951.1,1951.0,5.28728518]
[1742567863932,1.02531,1951.6,1951.2,2.56365]
[1742567864233,1.02539,1951.5,1951.4,1.02536]
[1742567864534,1.02539,1951.4,1951.3,46.78658518]
[1742567864839,1.02538,1951.5,1951.4,1.02535]
[1742567865040,1.02538,1951.5,1951.3,45.76118518]
[1742567865041,1.02539,1951.4,1951.3,46.78660518]
[1742567865239,1.02539,1951.4,1951.3,46.08710518]
[1742567865739,1.02539,1951.4,1951.3,47.38150518]
[1742567865942,1.02539,1951.4,1951.3,6.58150518]
[1742567867938,0.00767794,1951.5,1951.4,1.02539]
[1742567868138,1.7177,1951.8,1951.7,1.02523]
[1742567868344,1.02516,1951.9,1951.8,1.02513]
[1742567868638,2.56283,1951.9,1951.6,5.0098]
[1742567868844,1.02518,1951.8,1951.7,1.4088]
[1742567869040,2.43658,1951.8,1951.7,1.4088]
[1742567869438,1.02523,1951.7,1951.6,3.601]
[1742567869743,1.02534,1951.5,1951.4,6.03418]
[1742567870143,1.02534,1951.5,1951.4,6.69681097]
[1742567871540,2.35754,1951.5,1951.4,5.0088]
[1742567872238,1.3639,1951.6,1951.5,1.02534]
[1742567872443,3.72142,1951.6,1951.5,2.41584]
[1742567872639,3.72142,1951.6,1951.5,1.3905]
[1742567873542,3.72142,1951.6,1951.5,2.41584]
[1742567874144,1.72302,1951.6,1951.5,2.41584]
[1742567874345,1.72302,1951.6,1951.5,1.3905]
[1742567874550,1.72302,1951.6,1951.5,2.41584]
[1742567874748,1.72302,1951.6,1951.5,1.3905]
[1742567876449,0.6977,1951.6,1951.5,2.41584]
[1742567876650,1.72299,1951.6,1951.5,2.41584]
[1742567878148,1.02527,1951.7,1951.6,1.02529]
[1742567878451,1.02527,1951.7,1951.6,6.01299]
[1742567879141,1.02527,1951.7,1951.6,4.9877]
[1742567879850,1.11422226,1951.7,1951.6,3.599]
[1742567880244,1.02529,1951.6,1951.5,1.4118]
[1742567880444,1.02534,1951.5,1951.4,3.599]
[1742567880644,3.78104,1951.5,1951.4,3.599]
[1742567881046,3.78104,1951.5,1951.4,5.0108]
[1742567881245,3.78104,1951.5,1951.4,6.03619]
[1742567881448,3.78104,1951.5,1951.4,5.0108]
[1742567882055,1.02544,1951.3,1951.2,0.00767794]
[1742567882853,1.02544,1951.3,1951.2,1.03317794]
[1742567883254,1.02544,1951.3,1951.2,0.00767794]
[1742567883451,1.02544,1951.3,1951.2,1.35057794]
[1742567883843,1.02544,1951.3,1951.2,0.00767794]
[1742567884244,1.02544,1951.3,1950.9,47.6068]
[1742567884245,1.0256,1951.0,1950.9,3.2078]
[1742567884453,1.02576,1950.7,1950.6,5.57647]
[1742567884753,1.02576,1950.7,1950.6,46.37647]
[1742567884953,1.02576,1950.7,1950.6,45.3507]
[1742567885148,1.02576,1950.7,1950.6,4.5507]
[1742567885352,1.02576,1950.7,1950.6,1.3429]
[1742567885550,4.23356,1950.7,1950.6,1.3429]
[1742567885746,1.02581,1950.6,1950.5,3.60667794]
[1742567885952,2.44211,1950.6,1950.5,3.60667794]
[1742567886152,2.44211,1950.6,1950.5,0.00767794]
[1742567886351,2.53116554,1950.6,1950.5,0.00767794]
[1742567886552,1.02597,1950.3,1950.2,40.8]
[1742567886760,1.02606,1950.2,1950.1,1.4296]
[1742567887060,1.02606,1950.2,1950.0,47.439]
[1742567887061,5.65016,1950.2,1950.0,47.439]
[1742567887259,1.02608,1950.1,1950.0,0.05]
[1742567887556,2.44238,1950.1,1950.0,1.07613]
[1742567887759,1.02606,1950.2,1950.1,1.02605]
[1742567888166,1.02608,1950.1,1950.0,0.05]
[1742567888353,1.02606,1950.2,1950.1,1.02608]
[1742567888557,3.77431,1950.3,1950.2,1.02602]
[1742567888756,1.69311,1950.3,1950.2,1.02602]
[1742567888955,2.41696,1950.4,1950.3,1.02597]
[1742567889558,1.02591,1950.5,1950.4,1.02592]
[1742567889856,2.41691,1950.5,1950.4,1.02592]
[1742567890055,1.02594,1950.4,1950.3,1.02593]
[1742567890255,2.41691,1950.5,1950.4,1.02592]
[1742567890555,2.41691,1950.5,1950.2,47.6068]
[1742567890556,0.7089,1950.6,1950.5,1.02587]
[1742567890758,0.7089,1950.6,1950.5,4.62487]
[1742567891351,0.00767794,1950.8,1950.5,3.599]
[1742567891657,0.00767794,1950.8,1950.7,1.02576]
[1742567892356,1.03340794,1950.8,1950.6,1.71068]
[1742567892757,1.03340794,1950.8,1950.6,4.91848]
[1742567892959,0.00767794,1950.8,1950.6,4.91848]
[1742567893159,1.03341794,1950.8,1950.6,4.91848]
[1742567893554,0.00767794,1950.8,1950.7,4.62476]
[1742567894159,1.03338794,1950.8,1950.7,3.599]
[1742567894357,2.57202794,1950.8,1950.5,0.6718]
[1742567894558,2.38896,1950.7,1950.6,3.599]
[1742567894760,3.04846,1950.7,1950.6,3.599]
[1742567896359,4.58712,1950.7,1950.3,3.2078]
[1742567896669,1.02587,1950.5,1950.4,3.599]
[1742567897565,2.56455,1950.6,1950.2,45.03381]
[1742567897767,1.02596,1950.4,1950.3,4.62497]
[1742567898067,1.3055,1950.5,1950.1,3.599]
[1742567898068,3.8702,1950.5,1950.1,3.599]
[1742567898263,1.02608,1950.1,1950.0,0.05]
[1742567898658,1.02608,1950.1,1950.0,1.07613]
[1742567898860,1.3055,1950.3,1950.0,0.05]
[1742567899056,1.02603,1950.2,1950.1,1.02608]
[1742567899260,1.02603,1950.2,1950.1,4.62508]
[1742567899461,1.02599,1950.3,1950.2,1.02601]
[1742567899662,1.02602,1950.2,1950.1,7.83284]
[1742567899861,1.02608,1950.1,1950.0,1.78169]
[1742567900060,1.02608,1950.1,1950.0,5.38069]
[1742567900270,1.02608,1950.1,1950.0,4.3546]
[1742567900961,1.02608,1950.1,1950.0,0.05]
[1742567901362,1.02608,1950.1,1950.0,1.07613]
[1742567901769,1.02608,1950.1,1950.0,0.05]
[1742567902166,1.02608,1950.1,1950.0,1.07613]
[1742567902470,1.02608,1950.1,1950.0,0.05]
[1742567902967,1.02608,1950.1,1950.0,1.07613]
[1742567903371,1.02606,1950.2,1950.1,1.02608]
[1742567903574,1.02608,1950.1,1950.0,1.07609]
[1742567903869,1.02608,1950.1,1950.0,0.05]
[1742567904065,1.02608,1950.1,1950.0,1.07613]
[1742567904278,1.02596,1950.4,1950.3,1.02597]
[1742567904469,1.02601,1950.3,1950.2,1.02598]
[1742567904669,1.02601,1950.3,1950.2,7.83278]
[1742567904870,1.02601,1950.3,1950.2,4.62498]
[1742567905071,1.02601,1950.3,1950.2,7.83278]
[1742567905468,1.02601,1950.3,1950.2,6.8068]
[1742567905675,1.02601,1950.3,1950.2,5.0298]
[1742567906275,1.02601,1950.3,1950.2,6.05582]
[1742567906473,1.02601,1950.3,1950.2,9.26362]
[1742567906672,2.56469,1950.5,1950.3,1.02592]
[1742567906673,1.02596,1950.4,1950.3,1.02592]
[1742567906874,1.02596,1950.4,1950.3,1.3168]
[1742567907074,2.33546,1950.4,1950.3,1.3168]
[1742567907867,3.87432,1950.4,1950.0,0.05]
[1742567908069,1.02602,1950.2,1950.1,1.3168]
[1742567908471,2.99262,1950.2,1950.1,1.3168]
[1742567908876,1.68312,1950.2,1950.1,5.55068]
[1742567909075,1.02602,1950.2,1950.1,5.55068]
[1742567909278,1.026,1950.3,1950.2,1.02602]
[1742567909480,1.02596,1950.4,1950.3,1.02592]
[1742567909975,1.02592,1950.4,1950.3,2.34597]
[1742567910769,1.02592,1950.4,1950.1,3.2078]
[1742567910770,2.56482,1950.4,1950.1,3.2078]
[1742567910976,1.02608,1950.1,1950.0,5.99509]
[1742567912881,1.02608,1950.1,1950.0,1.37]
[1742567913071,2.36818,1950.1,1950.0,1.37]
[1742567915172,1.02608,1950.1,1950.0,1.37]
[1742567915577,2.41578,1950.2,1950.1,1.02608]
[1742567916281,1.02608,1950.2,1950.1,2.45948]
[1742567916470,1.0,1950.3,1950.2,1.02602]
[1742567916471,3.4126,1950.3,1950.2,1.02602]
[1742567916670,1.0,1950.3,1950.2,6.05842]
[1742567916869,2.02597,1950.3,1950.2,6.05842]
[1742567917677,1.02602,1950.2,1950.1,3.2078]
[1742567917982,2.41262,1950.2,1950.1,4.23388]
[1742567918179,2.41262,1950.2,1950.1,5.66728]
[1742567918681,2.41262,1950.2,1950.1,4.6412]
[1742567919386,2.41262,1950.2,1950.1,5.66728]
[1742567920177,2.02598,1950.3,1950.2,1.02602]
[1742567920382,2.02598,1950.3,1950.2,5.97482]
[1742567921177,3.43968,1950.3,1950.2,5.97482]
[1742567921685,3.43968,1950.3,1950.2,4.9488]
[1742567921882,3.43968,1950.3,1950.2,5.97482]
[1742567922886,3.43968,1950.3,1950.2,4.9488]
[1742567923088,3.43968,1950.3,1950.2,5.97482]
[1742567924682,3.43968,1950.3,1950.2,4.9488]
[1742567925082,3.43968,1950.3,1950.2,5.97482]
[1742567925477,3.43968,1950.3,1950.2,4.9488]
[1742567925688,1.02602,1950.2,1950.1,3.2078]
[1742567925890,2.36132,1950.2,1950.1,3.2078]
[1742567926092,1.02608,1950.1,1950.0,0.05]
[1742567926387,2.36138,1950.1,1950.0,0.05]
[1742567926693,1.3353,1950.1,1950.0,1.07613]
[1742567926895,2.36138,1950.1,1950.0,2.40703]
[1742567927193,1.02608,1950.1,1950.0,3.07062482]
[1742567928885,1.02608,1950.1,1950.0,1.73972482]
[1742567929080,1.02608,1950.1,1950.0,3.12552482]
[1742567929279,2.36136,1950.2,1950.1,1.02608]
[1742567929495,2.36136,1950.2,1950.1,1.3858]
[1742567929686,1.02606,1950.2,1950.1,5.61968]
[1742567929994,2.44506,1950.2,1950.1,5.61968]
[1742567930589,1.419,1950.2,1950.1,5.61968]
[1742567930892,1.02602,1950.2,1950.1,5.61963]
[1742567931097,1.02602,1950.2,1950.1,6.28322707]
[1742567931487,1.02602,1950.2,1950.1,0.66359707]
[1742567931687,2.34872,1950.2,1950.1,0.66359707]
[1742567931891,2.34872,1950.2,1950.1,1.3587]
[1742567932485,2.34872,1950.2,1950.1,2.38478]
[1742567932692,2.34872,1950.2,1950.1,1.3587]
[1742567933093,1.02602,1950.2,1950.1,2.38478]
[1742567933287,1.02602,1950.2,1950.1,3.2078]
[1742567933489,1.02608,1950.1,1950.0,0.05]
[1742567933895,1.02608,1950.1,1950.0,1.4087]
[1742567934412,1.02608,1950.1,1950.0,0.05]
[1742567934802,1.02608,1950.1,1950.0,1.423]
[1742567935204,1.02608,1950.1,1950.0,2.44913]
[1742567935404,1.02608,1950.1,1950.0,5.65693]
[1742567936213,1.02608,1950.1,1950.0,5.29444304]
[1742567936512,1.02607,1950.2,1950.0,6.32057304]
[1742567936815,1.02607,1950.2,1950.1,5.99702]
[1742567937003,1.02607,1950.2,1950.1,6.66066304]
[1742567937403,1.02607,1950.2,1950.1,4.971]
[1742567937599,2.41987,1950.2,1950.1,4.971]
[1742567937807,1.02608,1950.1,1950.0,3.2578]
[1742567938006,2.41988,1950.1,1950.0,1.3988]
[1742567939112,2.41988,1950.1,1950.0,0.05]
[1742567945614,2.41988,1950.1,1950.0,1.07613]
[1742567945812,1.02608,1950.1,1950.0,1.07613]
[1742567946315,1.02608,1950.1,1950.0,0.05]
[1742567946512,1.02629,1949.7,1949.6,3.2078]
[1742567946810,1.02655,1949.2,1949.1,4.23437]
[1742567947011,1.02655,1949.2,1949.1,44.0078]
[1742567947215,2.7865,1949.6,1949.2,2.56638]
[1742567947510,2.46083,1949.5,1949.4,1.02644]
[1742567947910,1.02644,1949.4,1949.3,4.23426]
[1742567948110,1.02644,1949.4,1949.3,4.62346]
[1742567948516,1.02644,1949.4,1949.3,3.597]
[1742567948812,1.02644,1949.5,1949.4,1.02644]
[1742567949010,2.79417794,1949.6,1949.4,1.02644]
[1742567949215,1.02644,1949.4,1949.3,7.83126]
[1742567949411,0.00767794,1949.6,1949.5,1.02639]
[1742567949617,1.03401794,1949.6,1949.5,4.23419]
[1742567949917,0.00767794,1949.6,1949.3,7.83127]
[1742567950117,1.02644,1949.4,1949.3,7.8313]
[1742567951406,3.08244,1949.5,1949.4,1.02644]
[1742567951611,1.72814,1949.5,1949.4,1.02644]
[1742567951809,1.03405794,1949.6,1949.5,1.02639]
[1742567952009,1.03405794,1949.6,1949.5,4.23419]
[1742567952215,0.00767794,1949.6,1949.5,8.48839]
[1742567952610,1.03401794,1949.6,1949.5,9.20519]
[1742567953212,0.00767794,1949.6,1949.5,9.20519]
[1742567953519,1.03401794,1949.6,1949.5,9.20519]
[1742567954319,0.00767794,1949.6,1949.5,9.20519]
[1742567954614,1.02639,1949.5,1949.4,1.3099]
[1742567954814,1.02655,1949.2,1949.1,41.82656]
[1742567955013,2.56618,1949.4,1949.1,41.82656]
[1742567955014,1.02654,1949.3,1949.2,1.02651]
[1742567955215,1.02655,1949.2,1949.1,48.63138]
[1742567955416,1.02655,1949.2,1949.1,47.6048]
[1742567955811,1.02655,1949.3,1949.1,47.6048]
[1742567956013,1.02655,1949.3,1949.2,1.02652]
[1742567956323,2.44105,1949.3,1949.2,1.3786]
[1742567956618,2.44105,1949.3,1949.2,4.9756]
[1742567957013,1.02655,1949.3,1949.2,6.00215]
[1742567959817,1.02655,1949.3,1949.2,4.9756]
[1742567960325,2.41055,1949.3,1949.2,1.3786]
[1742567960520,2.41055,1949.3,1949.2,4.9756]
[1742567960822,2.41055,1949.3,1949.2,46.80215]
[1742567961223,2.41055,1949.3,1949.2,45.7756]
[1742567961423,2.41055,1949.3,1949.2,46.80215]
[1742567961624,1.02655,1949.3,1949.2,46.80215]
[1742567961920,1.02655,1949.3,1949.2,45.7756]
[1742567962125,2.38835,1949.3,1949.2,45.7756]
[1742567963019,2.38835,1949.3,1949.2,4.9756]
[1742567963518,2.38835,1949.3,1949.2,1.3786]
[1742567964124,1.02671,1948.9,1948.8,3.597]
[1742567964322,2.56662,1949.1,1948.5,5.77499]
[1742567964323,2.56698,1948.8,1948.5,3.597]
[1742567964525,2.56677,1949.0,1948.7,1.02676]
[1742567964719,1.02684,1948.7,1948.6,1.02683]
[1742567965218,1.02687,1948.6,1948.5,40.8]
[1742567965520,6.87695,1949.0,1948.5,44.0078]
[1742567965727,0.7143,1949.0,1948.7,3.2078]
[1742567965917,1.02672,1948.9,1948.8,2.34651]
[1742567966823,1.02672,1948.9,1948.8,1.3198]
[1742567967025,2.43252,1948.9,1948.8,1.3198]
[1742567969928,1.02687,1948.6,1948.5,44.0078]
[1742567970124,1.02687,1948.6,1948.5,4.6186]
[1742567970628,1.02687,1948.6,1948.5,45.4186]
[1742567970829,3.04097,1948.6,1948.5,45.4186]
[1742567971026,3.04097,1948.6,1948.5,1.4108]
[1742567972917,1.72027,1948.6,1948.5,1.4108]
[1742567973621,3.12417,1948.6,1948.5,1.4108]
[1742567973818,3.12417,1948.6,1948.3,44.0078]
[1742567973819,1.02697,1948.4,1948.3,44.0078]
[1742567974018,1.02718,1948.0,1947.9,4.23497]
[1742567974228,1.02708,1948.2,1948.1,1.3308]
[1742567974425,1.02708,1948.2,1948.1,2.35793]
[1742567974625,1.02708,1948.2,1948.1,45.3386]
[1742567975026,1.02708,1948.2,1948.1,43.15793]
[1742567975227,1.02708,1948.2,1948.1,42.1308]
[1742567976023,2.43098,1948.2,1948.1,42.1308]
[1742567976227,3.10838,1948.2,1948.1,1.3308]
[1742567976429,1.02723,1947.9,1947.8,3.597]
[1742567976627,1.02734,1947.7,1947.5,4.6006]
[1742567976932,1.02734,1947.7,1947.6,51.046]
[1742567977138,0.7097,1947.9,1947.8,1.02729]
[1742567977339,1.02729,1947.8,1947.7,4.2351]
[1742567977635,1.02734,1947.7,1947.6,52.07336]
[1742567978031,2.34203,1947.8,1947.7,1.02734]
[1742567978342,0.7097,1947.9,1947.6,51.046]
[1742567978536,1.02731,1947.8,1947.7,4.23509]
[1742567978943,1.02731,1947.8,1947.7,5.59989]
[1742567979140,0.7097,1947.9,1947.8,1.02729]
[1742567979341,1.73695,1947.9,1947.8,5.98909]
[1742567979728,0.7097,1947.9,1947.8,5.98909]
[1742567979934,0.7097,1947.9,1947.8,46.78909]
[1742567980134,1.73693,1947.9,1947.8,46.78909]
[1742567980534,0.7097,1947.9,1947.8,46.78909]
[1742567980734,1.02723,1947.9,1947.8,45.7618]
[1742567981133,1.02721,1948.0,1947.9,1.0272]
[1742567981338,1.02723,1947.9,1947.8,45.42426]
[1742567981742,2.39232,1948.0,1947.9,1.02723]
[1742567982240,0.6695,1948.1,1947.9,3.2078]
[1742567982437,0.6695,1948.1,1948.0,1.02718]
[1742567982638,0.6695,1948.1,1948.0,4.62418]
[1742567982844,1.70452,1948.2,1948.1,1.02713]
[1742567983246,1.02713,1948.1,1948.0,4.62414]
[1742567983444,3.03602,1948.2,1948.1,1.02713]
[1742567983639,1.02708,1948.2,1948.1,4.23488]
[1742567983850,1.02708,1948.2,1948.1,1.02708]
[1742567984343,1.02713,1948.1,1948.0,4.62414]
[1742567984640,1.02712,1948.2,1948.1,1.02712]
[1742567984848,1.02713,1948.1,1948.0,4.62415]
[1742567985549,2.35861,1948.2,1948.1,1.02713]